bitfinex/quotes_BTCUSD_20250114
["timestamp","ask_amount","ask_price","bid_price","bid_amount"]
[1736871145053,0.13055637,96036.0,96035.0,0.05887325]
[1736871145303,0.13055637,96036.0,96035.0,0.06387325]
[1736871145831,0.23478329,96036.0,96035.0,0.05387325]
[1736871146066,0.54243361,96036.0,96035.0,0.05487325]
[1736871146377,0.54243361,96036.0,96035.0,0.05687325]
[1736871146592,0.54243361,96036.0,96035.0,0.00279235]
[1736871146818,0.55259762,96036.0,96035.0,0.00279235]
[1736871146986,0.46864559,96036.0,96035.0,0.00279235]
[1736871147195,0.24364559,96036.0,96035.0,0.00279235]
[1736871147407,0.23348158,96036.0,96035.0,0.00279235]
[1736871147637,0.23948158,96036.0,96035.0,0.00279235]
[1736871147838,0.23948158,96036.0,96035.0,0.00479235]
[1736871148699,0.23948158,96036.0,96035.0,0.05687325]
[1736871148700,0.30578714,96036.0,96035.0,0.05687325]
[1736871148904,0.23348158,96036.0,96035.0,0.05587325]
[1736871149290,0.23548158,96036.0,96035.0,0.00379235]
[1736871149801,0.13125466,96036.0,96035.0,0.00379235]
[1736871150396,0.24386339,96036.0,96035.0,0.00379235]
[1736871150774,0.36556158,96036.0,96035.0,0.00179235]
[1736871150982,0.22925466,96032.0,96031.0,0.01045159]
[1736871151135,0.45648158,96032.0,96031.0,0.01045159]
[1736871152797,0.45648158,96032.0,96031.0,0.01145159]
[1736871152997,0.47156158,96032.0,96031.0,0.01145159]
[1736871154005,0.47156158,96032.0,96031.0,5.9e-07]
[1736871154209,0.5757885,96032.0,96031.0,5.9e-07]
[1736871154429,0.5767885,96032.0,96031.0,5.9e-07]
[1736871154626,0.7267885,96032.0,96031.0,5.9e-07]
[1736871154782,0.33757866,96004.0,95989.0,0.00179235]
[1736871154989,0.12925466,95988.0,95987.0,0.03849233]
[1736871155312,0.23478398,95988.0,95987.0,0.03849233]
[1736871155473,0.12925466,95977.0,95975.0,0.0017934]
[1736871156087,0.12832713,95977.0,95975.0,0.0017934]
[1736871157062,0.12932713,95977.0,95976.0,0.05987493]
[1736871157206,0.23485658,95977.0,95976.0,0.05987493]
[1736871157409,0.23255405,95977.0,95976.0,0.05387493]
[1736871157642,0.23255405,95977.0,95976.0,0.05787493]
[1736871157840,0.31832206,95977.0,95976.0,0.05787493]
[1736871158065,0.31832206,95977.0,95976.0,0.00179403]
[1736871158491,0.23255405,95977.0,95976.0,0.00179403]
[1736871158691,0.23355405,95977.0,95976.0,0.00479403]
[1736871159068,0.23963405,95977.0,95976.0,0.00179403]
[1736871159398,0.24063405,95977.0,95976.0,0.00379403]
[1736871159759,0.24063405,95977.0,95976.0,0.05587493]
[1736871159955,0.30741004,95977.0,95976.0,0.05587493]
[1736871160473,0.23355405,95977.0,95976.0,0.05587493]
[1736871160702,0.05212105,95977.0,95976.0,0.05587493]
[1736871160903,0.12932713,95977.0,95976.0,0.05587493]
[1736871161988,0.00107247,95977.0,95976.0,0.05587493]
[1736871162193,0.00708,96008.0,95977.0,0.2326]
[1736871162389,0.07720608,95995.0,95990.0,0.15]
[1736871162644,0.05104858,96000.0,95990.0,0.2020809]
[1736871163019,0.07720608,95999.0,95990.0,0.2020809]
[1736871163241,0.05235079,96007.0,95990.0,0.2020809]
[1736871163609,0.07720608,95999.0,95997.0,0.208338]
[1736871163801,0.05104858,96007.0,95997.0,0.2604189]
[1736871164007,0.07720608,95999.0,95997.0,0.2604189]
[1736871164484,7.271e-05,96012.0,95999.0,0.15]
[1736871164714,7.271e-05,96012.0,96010.0,0.20831]
[1736871164925,7.271e-05,96012.0,96011.0,0.358309]
[1736871165166,7.271e-05,96012.0,96011.0,0.4103899]
[1736871165374,0.12832737,96012.0,96011.0,0.0520809]
[1736871165773,0.13132737,96012.0,96011.0,0.0520809]
[1736871165976,0.12832737,96012.0,96011.0,0.0520809]
[1736871166173,0.12932737,96012.0,96011.0,0.0590809]
[1736871166375,0.1433903,96012.0,96011.0,0.0630809]
[1736871166590,0.24791929,96012.0,96011.0,0.0590809]
[1736871166779,0.24661722,96012.0,96011.0,0.0590809]
[1736871166961,0.24761722,96012.0,96011.0,0.0630809]
[1736871167164,0.24761722,96012.0,96011.0,0.011]
[1736871167503,0.24661722,96012.0,96011.0,0.004]
[1736871167756,0.12932737,96012.0,96011.0,0.008]
[1736871167963,0.00107271,96012.0,96011.0,0.008]
[1736871168370,0.00107271,96012.0,96011.0,0.004]
[1736871168572,0.05242329,96012.0,96010.0,0.15]
[1736871168775,0.05104858,95998.0,95986.0,0.01026174]
[1736871169004,0.05104858,95998.0,95974.0,0.02279392]
[1736871169177,0.05104858,95998.0,95989.0,0.15]
[1736871169380,0.05104858,95998.0,95991.0,0.05006]
[1736871169599,0.05078626,95998.0,95991.0,0.05006]
[1736871170142,0.05078626,95998.0,95993.0,0.15]
[1736871170440,0.05078626,95998.0,95993.0,0.15036]
[1736871171049,0.05178626,95998.0,95993.0,0.14536]
[1736871171270,0.12799234,95994.0,95993.0,0.00036]
[1736871171830,0.12929476,95994.0,95993.0,0.00636]
[1736871172162,0.12929476,95994.0,95993.0,0.01036]
[1736871172363,0.12929476,95994.0,95993.0,0.00436]
[1736871172564,0.23352168,95994.0,95993.0,0.00136]
[1736871172842,0.25894649,95994.0,95993.0,0.001]
[1736871173241,0.48194649,95994.0,95993.0,0.001]
[1736871173447,0.55714649,95994.0,95993.0,0.001]
[1736871174488,0.33637334,95978.0,95977.0,0.0008538]
[1736871174706,0.44768026,95978.0,95977.0,0.0008538]
[1736871175980,0.185433,95978.0,95977.0,0.00135212]
[1736871176176,0.24460194,95978.0,95977.0,0.00135212]
[1736871176383,0.24329926,95978.0,95977.0,0.00171212]
[1736871176808,0.26629926,95978.0,95977.0,0.00171212]
[1736871177009,0.56082036,95978.0,95977.0,0.00171212]
[1736871177573,0.56082036,95978.0,95977.0,0.00135212]
[1736871177791,0.56082036,95978.0,95977.0,0.00235212]
[1736871178380,0.36543533,95978.0,95977.0,0.00135212]
[1736871178623,0.37251533,95978.0,95977.0,0.00135212]
[1736871178861,0.35251533,95978.0,95977.0,0.00135212]
[1736871179107,0.37251533,95978.0,95977.0,0.00135212]
[1736871179342,0.56144196,95978.0,95977.0,0.00135212]
[1736871179571,0.56944196,95978.0,95977.0,0.00135212]
[1736871179796,0.56244196,95978.0,95977.0,0.00135212]
[1736871180051,0.56844196,95978.0,95977.0,0.00135212]
[1736871180777,0.56744196,95978.0,95977.0,0.00135212]
[1736871181017,0.56844196,95978.0,95977.0,0.00135212]
[1736871181890,0.46136196,95978.0,95977.0,0.00135212]
[1736871182125,0.34544196,95978.0,95977.0,0.00135212]
[1736871182834,0.56840196,95978.0,95977.0,0.00135212]
[1736871183070,0.35647533,95978.0,95977.0,0.00135212]
[1736871183466,0.24943533,95978.0,95977.0,0.00135212]
[1736871183685,0.12144299,95978.0,95977.0,0.00135212]
[1736871183897,0.08420608,95978.0,95977.0,0.00135212]
[1736871184122,0.08420608,95978.0,95977.0,0.00171212]
[1736871184327,0.13499234,95978.0,95977.0,0.00171212]
[1736871184736,0.13399234,95978.0,95977.0,0.00171212]
[1736871184976,0.12799234,95978.0,95977.0,0.00171212]
[1736871185185,0.12799234,95978.0,95977.0,0.00271212]
[1736871185394,0.12999234,95978.0,95977.0,0.00271212]
[1736871185637,0.05078626,95984.0,95977.0,0.00171212]
[1736871185809,0.07720608,95978.0,95977.0,0.00171212]
[1736871186063,0.13029481,95978.0,95977.0,0.00771212]
[1736871186267,0.07720608,95978.0,95977.0,0.00671212]
[1736871186710,0.07920608,95978.0,95977.0,0.00671212]
[1736871186914,0.01029969,95991.0,95977.0,0.00671212]
[1736871186915,0.07720608,95991.0,95977.0,0.00671212]
[1736871187114,0.07720608,95989.0,95981.0,0.15]
[1736871187329,0.07720608,95989.0,95981.0,0.15036]
[1736871188353,0.00130233,95997.0,95985.0,0.15]
[1736871188566,0.05078626,96016.0,95988.0,0.15]
[1736871188726,0.07720608,96013.0,96007.0,0.0492]
[1736871188943,0.07720608,96013.0,96008.0,0.15]
[1736871189379,0.07720608,96013.0,96008.0,0.15036]
[1736871190034,0.07720608,96013.0,96008.0,0.15085832]
[1736871190241,0.00279299,96012.0,96009.0,0.208313]
[1736871190414,0.00279299,96012.0,96009.0,0.416986]
[1736871190617,0.00279299,96012.0,96011.0,0.208309]
[1736871190818,0.00279299,96012.0,96011.0,0.358669]
[1736871191021,0.07720608,96032.0,96012.0,0.15]
[1736871191221,0.05257841,96036.0,96012.0,0.15]
[1736871191222,0.12978449,96036.0,96014.0,0.15]
[1736871191530,0.07720608,96030.0,96025.0,0.15]
[1736871191701,0.05257841,96036.0,96025.0,0.15]
[1736871191702,0.07720608,96031.0,96025.0,0.208278]
[1736871191891,0.07720608,96031.0,96026.0,0.208276]
[1736871192093,0.07720608,96031.0,96026.0,0.208636]
[1736871192531,0.05257841,96036.0,96026.0,0.208636]
[1736871192532,0.07899823,96036.0,96026.0,0.208636]
[1736871192733,0.001,96030.0,96027.0,0.0492]
[1736871193048,0.07720608,96031.0,96027.0,0.466108]
[1736871193205,0.00179215,96036.0,96032.0,0.15]
[1736871193404,0.05257841,96036.0,96032.0,0.00036]
[1736871193610,0.05078626,96035.0,96032.0,0.00036]
[1736871194697,0.00179215,96036.0,96032.0,0.00036]
[1736871195163,0.00179215,96036.0,96032.0,0.00436]
[1736871195610,0.00179215,96036.0,96032.0,0.00936]
[1736871195841,0.00179215,96036.0,96034.0,0.15]
[1736871196041,0.00179215,96036.0,96035.0,0.358257]
[1736871196643,0.00179215,96036.0,96035.0,0.53984392]
[1736871196786,0.05078626,96063.0,96049.0,0.208225]
[1736871196990,0.05078626,96063.0,96036.0,0.09841374]
[1736871196991,0.07720608,96055.0,96048.0,0.20670542]
[1736871197209,0.07720608,96064.0,96051.0,0.15]
[1736871197409,0.07805978,96058.0,96050.0,0.15]
[1736871197605,0.07805978,96058.0,96050.0,0.25422692]
[1736871197810,0.0008537,96058.0,96050.0,0.25422692]
[1736871198011,0.0008537,96058.0,96050.0,0.10458692]
[1736871198012,0.00097846,96058.0,96050.0,0.10458692]
[1736871198220,0.00097846,96058.0,96054.0,0.15]
[1736871198425,0.00097846,96058.0,96055.0,0.208214]
[1736871198955,0.00097846,96058.0,96055.0,0.208574]
[1736871199742,0.00097846,96058.0,96055.0,0.419788]
[1736871200136,0.00097846,96058.0,96055.0,0.211574]
[1736871201700,0.00097846,96058.0,96055.0,0.214574]
[1736871202674,0.00097846,96058.0,96055.0,0.214573]
[1736871202856,0.00097846,96058.0,96055.0,0.00336]
[1736871203699,0.05176472,96058.0,96055.0,0.00036]
[1736871203900,0.208209,96057.0,96055.0,0.00036]
[1736871204102,0.1291684,96056.0,96055.0,0.00436]
[1736871204338,0.1291684,96056.0,96055.0,0.00736]
[1736871204339,0.0770807,96056.0,96055.0,0.00736]
[1736871204941,0.0770807,96056.0,96055.0,0.00336]
[1736871205167,0.0770807,96056.0,96055.0,0.00436]
[1736871205366,0.12906837,96056.0,96055.0,0.00436]
[1736871205539,0.12906837,96056.0,96055.0,0.00036]
[1736871205890,0.26659702,96056.0,96055.0,0.00636]
[1736871206033,0.19150935,96056.0,96055.0,0.00636]
[1736871206236,0.05208801,96056.0,96055.0,0.004]
[1736871206440,0.12906871,96056.0,96055.0,0.004]
[1736871207241,0.05078626,96045.0,96034.0,0.15]
[1736871207487,0.0769807,96047.0,96032.0,0.00179193]
[1736871207826,0.0769807,96047.0,96033.0,0.15]
[1736871208041,0.0520878,96046.0,96035.0,0.15]
[1736871208280,0.12776696,96050.0,96037.0,0.15]
[1736871208483,0.00097846,96058.0,96042.0,0.20824]
[1736871208691,0.00097846,96058.0,96049.0,0.15]
[1736871208913,0.0769807,96056.0,96049.0,0.15036]
[1736871209117,0.0769807,96052.0,96049.0,0.00036]
[1736871209520,0.12776696,96050.0,96049.0,0.00036]
[1736871209724,0.23199388,96050.0,96049.0,0.00036]
[1736871210080,0.25246991,96050.0,96049.0,0.00036]
[1736871210525,0.33602196,96036.0,96035.0,0.003]
[1736871210786,0.33602196,96036.0,96023.0,0.047]
[1736871210787,0.0769807,96033.0,96023.0,0.047]
[1736871210978,0.12776696,96033.0,96032.0,0.00179193]
[1736871211183,0.12906876,96033.0,96032.0,0.00179193]
[1736871211951,0.0769807,96033.0,96032.0,0.00179193]
[1736871212151,0.0769807,96033.0,96032.0,0.00215193]
[1736871212529,0.07828244,96033.0,96032.0,0.00315193]
[1736871212910,0.1290687,96033.0,96032.0,0.00315193]
[1736871214548,0.12776696,96033.0,96032.0,0.00315193]
[1736871214988,0.0769807,96033.0,96032.0,0.00315193]
[1736871217809,0.2670276,96033.0,96032.0,0.00315193]
[1736871217967,0.26572585,96033.0,96032.0,0.00315193]
[1736871218217,0.26572585,96033.0,96032.0,0.00279193]
[1736871218423,0.24253126,96033.0,96032.0,0.00279193]
[1736871218678,0.46553126,96033.0,96032.0,0.00179193]
[1736871218878,0.298745,96033.0,96032.0,0.00279193]
[1736871219081,0.05878626,96033.0,96032.0,0.00279193]
[1736871219304,0.05878626,96033.0,96032.0,0.00179193]
[1736871219305,0.13576696,96033.0,96032.0,0.00179193]
[1736871219470,0.14076696,96033.0,96032.0,0.00179193]
[1736871220216,0.14076696,96033.0,96032.0,0.00215193]
[1736871220429,0.13976696,96033.0,96032.0,0.00215193]
[1736871220636,0.014,96033.0,96032.0,0.00215193]
[1736871220841,0.0789807,96033.0,96032.0,0.00215193]
[1736871221049,0.002,96033.0,96032.0,0.00215193]
[1736871221245,0.004,96033.0,96032.0,0.00215193]
[1736871221750,0.004,96033.0,96032.0,0.00815193]
[1736871221968,0.004,96033.0,96032.0,0.15815193]
[1736871222177,0.004,96033.0,96032.0,0.15715193]
[1736871222383,0.13176696,96033.0,96032.0,0.00715193]
[1736871222589,0.12776696,96033.0,96032.0,0.00215193]
[1736871222786,0.12876696,96033.0,96032.0,0.01015193]
[1736871223289,0.44125488,96033.0,96032.0,0.01015193]
[1736871223492,0.45426175,96033.0,96032.0,0.01015193]
[1736871223703,0.48750786,96033.0,96032.0,0.01015193]
[1736871224123,0.48750786,96033.0,96032.0,0.01279193]
[1736871224547,0.50685963,96033.0,96032.0,0.00479193]
[1736871224716,0.50685963,96033.0,96032.0,0.00679193]
[1736871225173,0.50885963,96033.0,96032.0,0.00179193]
[1736871225378,0.86585963,96033.0,96032.0,9.3e-07]
[1736871225593,0.86585963,96033.0,95962.0,0.05006634]
[1736871225594,0.05078626,95986.0,95982.0,0.0454]
[1736871225843,0.12776696,95978.0,95976.0,0.00179403]
[1736871226058,0.44037488,95978.0,95976.0,0.00179403]
[1736871226269,0.23199388,95978.0,95977.0,0.0012138]
[1736871226479,0.44037488,95978.0,95977.0,0.0012138]
[1736871227065,0.44037488,95978.0,95977.0,0.00171212]
[1736871227830,0.46204168,95978.0,95977.0,0.00871212]
[1736871228211,0.46104168,95978.0,95977.0,0.00171212]
[1736871228429,0.46104168,95978.0,95977.0,0.00371212]
[1736871228662,0.46104168,95978.0,95977.0,0.00171212]
[1736871228862,0.47149184,95978.0,95977.0,0.00171212]
[1736871229033,0.56031492,95978.0,95977.0,0.00171212]
[1736871229274,0.47149184,95978.0,95977.0,0.00371212]
[1736871229688,0.47149184,95978.0,95977.0,0.00171212]
[1736871230935,0.47349184,95978.0,95977.0,0.00171212]
[1736871232200,0.25714068,95978.0,95977.0,0.00171212]
[1736871234719,0.25026068,95978.0,95977.0,0.00171212]
[1736871235123,0.25714068,95978.0,95977.0,0.00171212]
[1736871237712,0.38014068,95978.0,95977.0,0.00171212]
[1736871238510,0.63014068,95978.0,95977.0,0.00135212]
[1736871238713,0.70774068,95978.0,95977.0,1.2e-07]
[1736871239031,0.70474996,95977.0,95976.0,1.5e-07]
[1736871239369,0.49636696,95976.0,95975.0,1.3e-07]
[1736871239569,0.72938848,95976.0,95975.0,1.3e-07]
[1736871239888,0.7048208,95976.0,95975.0,1.3e-07]
[1736871240096,0.72938848,95976.0,95975.0,1.3e-07]
[1736871240540,0.72923306,95976.0,95975.0,1.3e-07]
[1736871240713,0.75380074,95976.0,95975.0,1.3e-07]
[1736871240955,0.49636696,95972.0,95971.0,7.4e-07]
[1736871241146,0.7048208,95972.0,95971.0,7.4e-07]
[1736871241965,0.7048208,95972.0,95962.0,0.0008526]
[1736871241966,0.33177996,95963.0,95962.0,0.0008526]
[1736871242210,0.45900688,95963.0,95962.0,0.00136238]
[1736871243339,0.46950736,95963.0,95962.0,0.00100238]
[1736871243541,0.44650736,95963.0,95962.0,0.00100238]
[1736871243739,0.16111366,95963.0,95962.0,0.00100238]
[1736871243912,0.23939721,95963.0,95962.0,0.00100238]
[1736871244212,0.12436696,95963.0,95962.0,0.00100238]
[1736871244355,0.12566974,95963.0,95962.0,0.00100238]
[1736871244801,0.12866974,95963.0,95962.0,0.00100238]
[1736871245192,0.12566974,95963.0,95962.0,0.00136238]
[1736871245394,0.0769807,95963.0,95962.0,0.00336238]
[1736871245620,0.12336696,95963.0,95962.0,0.00336238]
[1736871245823,0.12436696,95963.0,95962.0,0.00336238]
[1736871246179,0.34521666,95963.0,95962.0,0.00336238]
[1736871246394,0.33277996,95963.0,95962.0,0.00336238]
[1736871247615,0.0779807,95963.0,95962.0,0.00336238]
[1736871248001,0.001,95963.0,95962.0,0.00336238]
[1736871248296,0.001,95963.0,95962.0,0.26037738]
[1736871248568,0.001,95963.0,95962.0,0.41037738]
[1736871250174,0.001,95963.0,95962.0,0.5146043]
[1736871250293,0.04638626,95989.0,95963.0,0.15]
[1736871250493,0.04638626,95992.0,95972.0,0.0801]
[1736871250696,0.0769807,95985.0,95979.0,0.208377]
[1736871250898,0.07828302,95984.0,95974.0,0.15]
[1736871251107,0.0769807,95984.0,95979.0,0.00036]
[1736871251308,0.0769807,95984.0,95980.0,0.208376]
[1736871251507,0.0769807,95984.0,95980.0,0.208736]
[1736871251714,0.0779807,95985.0,95980.0,0.208736]
[1736871252114,0.0769807,95985.0,95980.0,0.208736]
[1736871252585,0.208316,96008.0,95980.0,0.00036]
[1736871252729,0.0769807,95991.0,95982.0,0.15]
[1736871252926,0.0769807,95995.0,95992.0,0.208349]
[1736871253140,0.04638626,96020.0,95993.0,0.15]
[1736871253342,0.02097442,96022.0,95993.0,0.15]
[1736871253343,0.0769807,96021.0,96011.0,0.15]
[1736871253551,0.0769807,96021.0,96012.0,0.0801]
[1736871253952,0.0769807,96021.0,96013.0,0.208305]
[1736871254364,0.07713046,96021.0,96013.0,0.208665]
[1736871255384,0.07713046,96021.0,96017.0,0.208294]
[1736871255652,0.07913046,96021.0,96017.0,0.416948]
[1736871256318,0.00214976,96021.0,96017.0,0.416948]
[1736871256635,0.00214976,96021.0,96020.0,0.15]
[1736871256636,0.00314976,96021.0,96020.0,0.15]
[1736871256992,0.00314976,96021.0,96020.0,0.15036]
[1736871257195,0.00014976,96021.0,96020.0,0.25458692]
[1736871257443,0.00179215,96032.0,96031.0,0.488366]
[1736871257652,0.00179215,96032.0,96031.0,0.59259292]
[1736871257858,0.00229117,96032.0,96031.0,0.59295292]
[1736871258074,0.00229117,96032.0,96031.0,0.64656666]
[1736871258251,0.0008531,96056.0,96038.0,0.05361374]
[1736871258497,0.00100272,96056.0,96040.0,0.15]
[1736871258675,0.00100272,96056.0,96053.0,0.208218]
[1736871258887,0.00100272,96056.0,96055.0,0.358214]
[1736871259087,0.00100272,96056.0,96055.0,0.407414]
[1736871259718,0.00100272,96056.0,96055.0,0.407774]
[1736871260862,0.00200272,96056.0,96055.0,0.414774]
[1736871261068,0.00200272,96056.0,96055.0,0.407774]
[1736871261287,0.00200272,96056.0,96055.0,0.414774]
[1736871261494,0.00300272,96056.0,96055.0,0.420774]
[1736871261935,0.00100272,96056.0,96055.0,0.413774]
[1736871262671,0.00200272,96056.0,96055.0,0.413774]
[1736871263216,0.00200272,96056.0,96055.0,0.21156]
[1736871263422,0.00200272,96056.0,96055.0,0.06156]
[1736871263566,0.00200272,96056.0,96055.0,0.05556]
[1736871263794,0.00200272,96056.0,96055.0,0.06156]
[1736871264047,0.00100272,96056.0,96055.0,0.05556]
[1736871264253,0.00200272,96056.0,96055.0,0.13746]
[1736871264601,0.00100272,96056.0,96055.0,0.44230066]
[1736871265292,0.00200272,96056.0,96055.0,0.44930066]
[1736871265501,0.00100272,96056.0,96055.0,0.44230066]
[1736871265710,0.0769807,96082.0,96057.0,0.05361374]
[1736871265938,0.04723946,96086.0,96057.0,0.05361374]
[1736871265939,0.04817988,96081.0,96057.0,0.15]
[1736871266151,0.0769807,96061.0,96057.0,0.00036]
[1736871267089,0.0769807,96061.0,96057.0,0.00636]
[1736871267292,0.0018537,96058.0,96057.0,0.01336]
[1736871267493,0.0008537,96058.0,96057.0,0.00036]
[1736871267917,0.0018537,96058.0,96057.0,0.00836]
[1736871268709,0.0008537,96058.0,96057.0,0.25758692]
[1736871268881,0.0008537,96058.0,96057.0,0.25858692]
[1736871269060,0.0008537,96058.0,96057.0,0.29728292]
[1736871269471,0.0008537,96058.0,96057.0,0.29828292]
[1736871269835,0.0008537,96058.0,96057.0,0.29728292]
[1736871270239,0.0008537,96058.0,96057.0,0.30028292]
[1736871270598,0.0018537,96058.0,96057.0,0.30528292]
[1736871270767,0.0018537,96058.0,96057.0,0.201056]
[1736871270963,0.04823996,96058.0,96057.0,0.00936]
[1736871271165,0.0018537,96058.0,96057.0,0.00936]
[1736871272576,0.0788344,96058.0,96057.0,0.00936]
[1736871276633,0.12522066,96058.0,96057.0,0.00936]
[1736871277246,0.0788344,96058.0,96057.0,0.00936]
[1736871281019,0.0018537,96058.0,96057.0,0.00936]
[1736871281229,0.0018537,96058.0,96057.0,0.15936]
[1736871281834,0.0018537,96058.0,96057.0,0.26358692]
[1736871282037,0.0018537,96058.0,96057.0,0.36640066]
[1736871282238,0.0018537,96058.0,96057.0,0.44730066]
[1736871282713,0.0018537,96058.0,96057.0,0.39368692]
[1736871282933,0.0018537,96058.0,96057.0,0.38968692]
[1736871283134,0.0008537,96058.0,96057.0,0.43830066]
[1736871283333,0.0018537,96058.0,96057.0,0.44830066]
[1736871283762,0.0018537,96058.0,96057.0,0.43830066]
[1736871283974,0.0028537,96058.0,96057.0,0.44430066]
[1736871284149,0.0028537,96058.0,96057.0,0.46731996]
[1736871284984,0.0028537,96058.0,96057.0,0.44430066]
[1736871285275,0.0028537,96058.0,96057.0,0.44930066]
[1736871285656,0.0028537,96058.0,96057.0,0.46731996]
[1736871285971,0.0028537,96058.0,96057.0,0.47431996]
[1736871286320,0.0028537,96058.0,96057.0,0.45130066]
[1736871286555,0.0028537,96058.0,96057.0,0.46731996]
[1736871286788,0.0008537,96058.0,96057.0,0.46131996]
[1736871287209,0.00179362,96081.0,96080.0,0.15]
[1736871287419,0.00179362,96081.0,96080.0,0.25422692]
[1736871287620,0.00179362,96081.0,96080.0,0.38178692]
[1736871287825,0.00179362,96081.0,96080.0,0.45841996]
[1736871287996,0.00179362,96081.0,96080.0,0.49079431]
[1736871288316,0.0008532,96086.0,96085.0,0.43478204]
[1736871288527,0.00100279,96086.0,96085.0,0.57174331]
[1736871289684,0.00179362,96118.0,96108.0,0.358099]
[1736871289886,0.00179362,96118.0,96108.0,0.358459]
[1736871289887,0.07877432,96118.0,96108.0,0.358459]
[1736871290503,0.07877432,96118.0,96108.0,0.46268592]
[1736871290875,0.00179362,96118.0,96108.0,0.51048592]
[1736871291257,0.00179362,96118.0,96108.0,0.64949966]
[1736871291365,0.00179362,96118.0,96108.0,0.67251896]
[1736871291569,0.00179362,96118.0,96117.0,0.43471204]
[1736871291769,0.00179362,96118.0,96117.0,2.08709896]
[1736871291770,0.00194318,96118.0,96117.0,2.08709896]
[1736871292058,0.00194318,96118.0,96117.0,2.39301596]
[1736871292421,0.00179362,96127.0,96126.0,0.07663304]
[1736871292648,0.00179362,96127.0,96126.0,0.61942869]
[1736871292834,0.00179362,96127.0,96126.0,0.76870269]
[1736871293010,0.00179257,96129.0,96128.0,0.07663304]
[1736871293194,0.00179257,96129.0,96128.0,0.86479269]
[1736871293388,0.00179257,96129.0,96128.0,0.64783269]
[1736871293619,0.00179257,96129.0,96128.0,0.46596869]
[1736871293822,0.00179257,96129.0,96128.0,0.58645069]
[1736871294074,0.00179257,96129.0,96128.0,0.46596869]
[1736871294407,0.0769807,96168.0,96132.0,0.07663304]
[1736871294746,0.04638626,96176.0,96132.0,2.22052196]
[1736871294941,0.04638626,96176.0,96132.0,2.63860896]
[1736871295120,0.0769807,96164.0,96132.0,1.96411496]
[1736871295532,0.00279257,96133.0,96132.0,1.97311496]
[1736871295905,0.00279257,96133.0,96132.0,1.97911496]
[1736871296303,0.00279257,96133.0,96132.0,0.34621996]
[1736871297397,0.00279257,96133.0,96132.0,0.32320066]
[1736871297605,0.00279257,96133.0,96132.0,0.26958692]
[1736871297806,0.00279257,96133.0,96132.0,0.32320066]
[1736871299871,0.00279257,96133.0,96132.0,0.26958692]
[1736871300077,0.00279257,96133.0,96132.0,0.32320066]
[1736871300282,0.00279257,96133.0,96132.0,0.26958692]
[1736871300479,0.00279257,96133.0,96132.0,0.01536]
[1736871301087,0.07977327,96133.0,96132.0,0.01536]
[1736871301306,0.00279257,96133.0,96132.0,0.01536]
[1736871301744,0.00179257,96133.0,96132.0,0.00636]
[1736871302155,0.00679257,96133.0,96132.0,0.00636]
[1736871302347,0.00679257,96133.0,96132.0,0.00036]
[1736871302759,0.00679257,96133.0,96132.0,0.00336]
[1736871303423,0.07877327,96133.0,96132.0,0.00336]
[1736871303602,0.12645986,96133.0,96132.0,0.00336]
[1736871303804,0.12515953,96133.0,96132.0,0.00336]
[1736871304208,0.12506752,96133.0,96132.0,0.00436]
[1736871305017,0.00170056,96133.0,96132.0,0.00436]
[1736871305427,0.00170056,96133.0,96132.0,0.00336]
[1736871305630,0.00170056,96133.0,96132.0,0.00036]
[1736871305830,0.00170056,96133.0,96132.0,0.00136]
[1736871306267,0.12506752,96133.0,96132.0,0.00036]
[1736871306434,0.12636797,96133.0,96132.0,0.00036]
[1736871306644,0.12636797,96133.0,96132.0,0.00136]
[1736871307036,0.12636797,96133.0,96132.0,0.00236]
[1736871307245,0.12636797,96133.0,96132.0,0.00036]
[1736871307639,0.13136797,96133.0,96132.0,0.00036]
[1736871307861,0.12636797,96133.0,96132.0,0.00036]
[1736871308203,0.12736797,96133.0,96132.0,0.00036]
[1736871308409,0.50225538,96133.0,96132.0,0.00036]
[1736871308588,0.50225538,96133.0,96078.0,0.0488]
[1736871308589,0.04638626,96101.0,96078.0,0.0488]
[1736871308789,0.00130079,96100.0,96084.0,0.208149]
[1736871309083,0.00130079,96100.0,96078.0,0.0488]
[1736871309084,0.0769807,96083.0,96063.0,0.0488]
[1736871309301,0.0769807,96082.0,96074.0,0.01059548]
[1736871309506,0.0769807,96082.0,96065.0,0.15]
[1736871309726,0.0769807,96082.0,96071.0,0.15]
[1736871309967,0.0769807,96083.0,96078.0,0.001]
[1736871310180,0.0769807,96093.0,96078.0,0.001]
[1736871310392,0.0769807,96093.0,96080.0,0.15]
[1736871310604,0.0769807,96093.0,96082.0,0.15]
[1736871310825,0.0769807,96093.0,96084.0,0.15]
[1736871311065,0.04638626,96092.0,96084.0,0.15]
[1736871311491,0.0769807,96088.0,96063.0,0.10241374]
[1736871311704,0.0769807,96091.0,96084.0,0.201]
[1736871311918,0.00049843,96101.0,96099.0,0.15]
[1736871312123,0.00049843,96101.0,96100.0,0.358116]
[1736871312512,0.00049843,96101.0,96100.0,0.46234292]
[1736871312863,0.00049843,96101.0,96100.0,0.51334292]
[1736871314153,0.00049843,96101.0,96100.0,0.52356297]
[1736871314332,0.00049843,96101.0,96100.0,0.52756297]
[1736871314589,0.00049843,96101.0,96100.0,1.703]
[1736871314798,0.00049843,96101.0,96100.0,0.053]
[1736871315005,0.07847913,96101.0,96100.0,0.062]
[1736871315641,0.07847913,96101.0,96100.0,0.06179214]
[1736871316263,0.00149843,96101.0,96100.0,0.06679214]
[1736871316442,0.00049843,96101.0,96100.0,0.05779214]
[1736871316679,0.00049843,96101.0,96100.0,0.05279214]
[1736871317005,0.00249843,96101.0,96100.0,0.05479214]
[1736871317126,0.00049843,96101.0,96100.0,0.05479214]
[1736871317349,0.00049843,96101.0,96100.0,0.05779214]
[1736871317860,0.04688469,96101.0,96100.0,0.05779214]
[1736871318063,0.12386539,96101.0,96100.0,0.05779214]
[1736871318444,0.12516614,96101.0,96100.0,0.05779214]
[1736871318690,0.22809231,96101.0,96100.0,0.05779214]
[1736871318881,0.22809231,96101.0,96100.0,0.05579214]
[1736871319048,0.12386539,96101.0,96100.0,0.05579214]
[1736871319251,0.12386539,96101.0,96100.0,0.05679214]
[1736871319451,0.28379859,96101.0,96100.0,0.00579214]
[1736871319663,0.22809231,96101.0,96100.0,0.00479214]
[1736871320055,0.22809231,96101.0,96100.0,0.00179214]
[1736871320254,0.23109231,96101.0,96100.0,0.00179214]
[1736871320459,0.25409231,96101.0,96100.0,0.00179214]
[1736871320686,0.43982128,96101.0,96100.0,0.00179214]
[1736871320889,0.44682128,96101.0,96100.0,0.00279214]
[1736871321233,0.44682128,96101.0,96057.0,0.00179151]
[1736871321234,0.0769807,96059.0,96057.0,0.00179151]
[1736871321433,0.0769807,96058.0,96057.0,0.00179151]